Cogmind - Beta 10.2 @@@ ROGUE MODE // 2020.12.12 @ 10:59:04 Player: Demise Result: Destroyed by A6-2G7(z) with Small Laser Performance ------------- Evolutions (1) 500 Regions Visited (5) 1000 Robots Destroyed (80) 400 Value Destroyed (1924) 1924 Prototype IDs (31) 620 Alien Tech Used (0) 0 Bonus (411) 411 TOTAL SCORE: 4855 Bonus ------- High Alert Combat Kills 111 Aligned with FarCom 300 Cogmind --------- Core Integrity 0/400 Matter 216/300 Energy 253/265 System Corruption 0% Temperature Cool (4) Movement Treading (260) Ox5 Location -9/Exiles Parts ------- > --- POWER (1) -------- Improved Ion Engine > --- PROPULSION (2) --- Light Treads Armored Wheel > --- UTILITY (4) ------ Humpback Armor Integrity Analyzer Shield Generator > --- WEAPON (2) ------- 8R-AWN's Boregun 8R-AWN's Boregun > --- INVENTORY (24) --- Reinforced Fission Core Advanced Myomer Leg Experimental Heat Sink Large Matter Pod (150) Large Matter Pod (70) Gravity Neutralizing Apparatus Core Shielding Core Shielding Core Shielding Core Shielding 8R-AWN's Armor/EX Light Assault Rifle Light Assault Rifle Light Cannon Improved Light Cannon Mini Grenade Launcher Peak State ------------ > --- POWER ------------ Improved Ion Engine > --- PROPULSION ------- Light Treads Armored Wheel > --- UTILITY ---------- Humpback Armor Integrity Analyzer Shield Generator > --- WEAPON ----------- 8R-AWN's Boregun 8R-AWN's Boregun > --- INVENTORY -------- Reinforced Fission Core Advanced Myomer Leg Experimental Heat Sink Large Matter Pod Large Matter Pod Gravity Neutralizing Apparatus Core Shielding Core Shielding Core Shielding Core Shielding 8R-AWN's Armor/EX Light Assault Rifle Light Assault Rifle Light Cannon Improved Light Cannon Mini Grenade Launcher [Rating: 37] Favorites ----------- Power Ion Engine Engine Ion Engine Power Core Light Nuclear Core Propulsion Light Treads Treads Light Treads Leg Aluminum Leg Wheel Wheel Utility Large Storage Unit Device Improved Heat Sink Storage Large Storage Unit Processor Armor Integrity Analyzer Protection Core Shielding Weapon Light Cannon Energy Gun Improved EM Shotgun Ballistic Gun Light Assault Rifle Ballistic Cannon Light Cannon Launcher Mini Grenade Launcher Special Weapon Mining Laser Impact Weapon Hammer Build | -11 -10 -10 -9 -9 -9 ------- Run | Scr Mat Min Mat Min Exi Slots Evolved 2 | . . . 2 . . Power . | . . . . . . Propulsion . | . . . . . . Utility 2 | . . . 2 . . Weapon . | . . . . . . Parts Attached 92 | 2 26 3 32 6 23 Power 11 | . 4 . 5 1 1 Engine 9 | . 4 . 3 1 1 Core 2 | . . . 2 . . Reactor . | . . . . . . Propulsion 20 | . 6 1 7 3 3 Treads 17 | . 4 1 7 3 2 Leg . | . . . . . . Wheel 3 | . 2 . . . 1 Hover . | . . . . . . Flight . | . . . . . . Utility 23 | 1 5 . 8 1 8 Device 6 | . . . 3 . 3 Storage 9 | 1 5 . 2 . 1 Processor 1 | . . . . . 1 Hackware . | . . . . . . Protection 7 | . . . 3 1 3 Artifact . | . . . . . . Weapon 38 | 1 11 2 12 1 11 Energy Gun 7 | 1 2 . 4 . . Energy Cannon . | . . . . . . Ballistic Gun 14 | . 2 2 1 . 9 Ballistic Cannon 11 | . 4 . 6 1 . Launcher 2 | . . . . . 2 Special Weapon 3 | . 3 . . . . Impact Weapon 1 | . . . 1 . . Slashing Weapon . | . . . . . . Piercing Weapon . | . . . . . . Special Melee Weapon . | . . . . . . Unidentified Prototypes 5 | . . . 2 . 3 Parts Lost 20 | . 3 1 6 . 10 Power 3 | . . . 2 . 1 Propulsion 5 | . 1 1 . . 3 Utility 3 | . . . 1 . 2 Weapon 9 | . 2 . 3 . 4 Highest Loss Streak 6 | . 2 1 2 . 6 Average Slot Usage (%) 94 | . 99 100 94 100 82 Engine 11 | . 14 14 8 10 11 Treads 22 | . 22 28 21 22 20 Wheel 1 | . 4 . . . 1 Storage 26 | . 28 28 28 33 16 Protection 6 | . . . 10 11 7 Energy Gun 3 | . 8 . 6 . . Ballistic Gun 6 | . 9 27 2 . 5 Ballistic Cannon 12 | . 9 . 11 22 15 Naked Turns . | . . . . . . Heaviest Build 126 | 17 43 43 61 63 126 Greatest Support 40 | 20 40 40 40 40 40 Greatest Overweight (x) 8 | . 1 1 2 1 8 Average Overweight (x) 1 | . . . . 1 2 Largest Inventory Capacity 36 | 8 16 16 22 22 36 Average Capacity 19 | 6 10 16 19 22 25 Most Carried 34 | 6 15 16 22 22 34 Average Carried 17 | 6 10 15 18 21 21 Final Capacity 24 | 8 16 16 22 22 24 Final Carried 22 | 6 15 16 22 22 17 Class Distribution -------------------- 52% | Hauler-Mutant 40% | Mutant 7% | Scavenger-Mutant Dominant Class ---------------- Mutant | -10/Materials Mutant | -10/Mines Hauler-Mutant | -9/Materials Hauler-Mutant | -9/Mines Hauler-Mutant | -9/Exiles Resources | -11 -10 -10 -9 -9 -9 ----------- Run | Scr Mat Min Mat Min Exi Matter Collected 2407 | 220 592 119 800 172 504 Remotely . | . . . . . . Salvage Created 2506 | 119 711 32 1243 136 265 Parts 184 | 7 49 3 92 17 16 Haulers Intercepted 3 | . 2 . 1 . . Recyclers Shooed 1 | . . . 1 . . Parts Field Recycled . | . . . . . . Retrieved Matter . | . . . . . . Parts Self-Destructed . | . . . . . . Prevented . | . . . . . . Kills | -11 -10 -10 -9 -9 -9 ------- Run | Scr Mat Min Mat Min Exi Combat Hostiles Destroyed 68 | . 17 1 35 7 8 Guns 26 | . 13 . 12 . 1 Cannons 35 | . 4 1 23 7 . AOE 7 | . . . . . 7 Classes Destroyed 14 | 2 6 1 2 . 3 Worker 1 | . 1 . . . . Builder 2 | . . 1 . 1 . Tunneler 2 | 1 . . . 1 . Hauler 3 | . 2 . 1 . . Recycler 1 | 1 . . . . . Operator 4 | . 1 . 3 . . Turret 1 | . . . . . 1 Watcher 3 | . 3 . . . . Swarmer 19 | . 6 1 8 4 . Grunt 34 | . 11 . 21 2 . Duelist 2 | . . . 1 1 . Sentry 5 | . . . 5 . . Zionite 3 | . . . . . 3 Assembled 7 | . . . . . 7 Best Kill Streak 6 | 2 6 1 5 5 5 Combat Bots Only 6 | . 6 1 5 4 5 Max Kills in Single Turn 5 | 1 1 1 1 1 5 Gunslinging . | . . . . . . Exploded 5 | . . . . . 5 Melee . | . . . . . . Uniques/NPCs Destroyed 1 | . . . . . 1 8R-AWN (-9/Exiles) Combat | -11 -10 -10 -9 -9 -9 -------- Run | Scr Mat Min Mat Min Exi Damage Taken 4170 | . 768 449 1296 158 1499 Core 630 | . 136 89 171 . 234 Absorbed by Shields 3 | . . . . . 3 Core Remaining (%) 55 | 100 . 10 . . . Volleys Fired 259 | 2 65 9 100 14 69 Largest 2 | 2 2 2 2 2 2 Hottest 100 | 90 100 70 90 74 60 Shots Fired 488 | 4 125 18 184 28 129 Gun 301 | 4 93 12 69 . 123 Cannon 177 | . 28 6 115 28 . Launcher 6 | . . . . . 6 Special 4 | . 4 . . . . Kinetic 385 | . 70 18 146 28 123 Thermal 38 | 1 37 . . . . Explosive 6 | . . . . . 6 Electromagnetic 59 | 3 18 . 38 . . Robot Hit Streak 18 | 3 7 14 18 12 14 Robot Miss Streak 4 | 1 4 2 3 2 2 Penetration Max 1 | . . . . . 1 Secondary Targets 3 | . 2 . 1 . . Max Gunslinging Chain 1 | . 1 . 1 . . Shots Hit Robots 326 | 3 72 15 122 18 96 Core Hits 151 | 2 36 7 59 9 38 Critical Hits 9 | . 1 . 1 . 7 Critical Kills 2 | . 1 . . . 1 Critical Parts Destroyed 7 | . . . 1 . 6 Melee Attacks . | . . . . . . Impact . | . . . . . . Slashing . | . . . . . . Piercing . | . . . . . . Sneak Attacks . | . . . . . . Combat Hostiles . | . . . . . . Follow-up Attacks . | . . . . . . Damage Inflicted 4674 | 64 958 151 1880 366 1255 Guns 2452 | 40 677 93 705 . 937 Cannons 1823 | . 281 58 1122 362 . Explosions 378 | 24 . . 36 . 318 Melee . | . . . . . . Ramming 21 | . . . 17 4 . Kinetic 3269 | . 502 151 1317 362 937 Thermal 349 | 24 289 . 36 . . Explosive 318 | . . . . . 318 Electromagnetic 717 | 40 167 . 510 . . Impact . | . . . . . . Slashing . | . . . . . . Piercing . | . . . . . . Highest Corruption 3 | . 3 3 . . . Average Corruption 2 | . 2 3 . . . Corruption Purged . | . . . . . . Effects 33 | . 24 9 . . . Message Errors 9 | . 5 4 . . . Matter Fused 9 | . 7 2 . . . Heat Flow Errors 1 | . . 1 . . . Energy Discharges 4 | . 4 . . . . Data Loss (minor) 7 | . 5 2 . . . Targeting Errors 2 | . 2 . . . . Weapon Failures 1 | . 1 . . . . Overload Shots . | . . . . . . Overflow Damage 88 | . . 2 49 23 14 Projectiles 63 | . . 2 38 23 . Explosions 25 | . . . 11 . 14 Melee . | . . . . . . Knockbacks 12 | . . 1 7 4 . Impact . | . . . . . . Kinetic 11 | . . 1 6 4 . Secondary 1 | . . . 1 . . Self-Inflicted Damage 47 | . . . 47 . . Shots 1 | . . . 1 . . Rammed 1 | . . . 1 . . Targets Rammed 2 | . . . 1 1 . Kicked . | . . . . . . Crushed 1 | . . . . 1 . Highest Temperature 226 | 30 204 226 213 96 4 Average Temperature 42 | 15 51 74 36 41 2 Received Heat Transfer 685 | . 240 27 372 42 4 Siege Activations . | . . . . . . Robots Corrupted . | . . . . . . Combat Hostiles . | . . . . . . Parts Fried 7 | . 2 . 5 . . Impact Corruptions . | . . . . . . Robots Melted . | . . . . . . Combat Hostiles . | . . . . . . Parts Melted . | . . . . . . Heat Transferred 951 | 50 851 . 50 . . Parts Sabotaged . | . . . . . . Parts Stolen . | . . . . . . Parts Stripped . | . . . . . . Power Chain Reactions 2 | 1 . . 1 . . Missiles Intercepted . | . . . . . . Alert | -11 -10 -10 -9 -9 -9 ------- Run | Scr Mat Min Mat Min Exi Peak Influence 725 | 10 271 61 725 392 . Initial 282 | . 6 41 7 282 . Average 200 | 7 88 39 331 243 . Maximum Alert Level 3 | . 1 . 3 1 . Low Security (%) 61 | 100 96 100 26 46 . Level 1 26 | . 3 . 39 53 . Level 2 11 | . . . 32 . . Level 3 . | . . . . . . Level 4 . | . . . . . . Level 5 . | . . . . . . High Security . | . . . . . . Max Security . | . . . . . . Squads Dispatched 10 | . 4 . 6 . . Investigation 7 | . 3 . 4 . . Extermination . | . . . . . . Reinforcement 3 | . 1 . 2 . . Assault . | . . . . . . Garrison . | . . . . . . Intercept . | . . . . . . Construction Impeded . | . . . . . . Haulers Reinforced . | . . . . . . Stealth | -11 -10 -10 -9 -9 -9 --------- Run | Scr Mat Min Mat Min Exi Distress Signals 4 | . 1 . 3 . . Communications Jammed . | . . . . . . Distress Signals . | . . . . . . Times Spotted 114 | . 26 5 60 9 14 Peak Tracking Total 9 | . 8 3 6 4 9 Tactical Retreats 13 | . . 1 10 . 2 Traps | -11 -10 -10 -9 -9 -9 ------- Run | Scr Mat Min Mat Min Exi Traps Triggered 4 | . 4 . . . . Indirectly . | . . . . . . Trap Hack Attempts . | . . . . . . Triggered . | . . . . . . Disarmed . | . . . . . . Reprogrammed . | . . . . . . Reused . | . . . . . . Traps Extracted . | . . . . . . Installed . | . . . . . . Triggered . | . . . . . . Exploded 3 | . . . . . 3 Machines | -11 -10 -10 -9 -9 -9 ---------- Run | Scr Mat Min Mat Min Exi Machines Disabled 17 | . . . 4 1 12 Max in Single Turn 2 | . . . 1 1 2 Machines Sabotaged . | . . . . . . Garrisons Compromised . | . . . . . . Overloaded Fab Kills . | . . . . . . Fab Network Shutdowns . | . . . . . . Hacking | -11 -10 -10 -9 -9 -9 --------- Run | Scr Mat Min Mat Min Exi Machines Accessed 18 | . 5 1 10 . 2 Terminals 12 | . 4 1 7 . . Fabricators . | . . . . . . Repair Stations 2 | . 1 . 1 . . Recycling Units 1 | . . . 1 . . Scanalyzers 1 | . . . 1 . . Garrison Access . | . . . . . . Total Hacks 85 | . 24 2 35 . 24 Successful 66 | . 17 . 25 . 24 Failed 19 | . 7 2 10 . . Catastrophic 2 | . . 1 1 . . Database Lockouts . | . . . . . . Manual 37 | . 12 2 22 . 1 Terminals 46 | . 18 2 26 . . Fabricators . | . . . . . . Repair Stations 10 | . 6 . 4 . . Recycling Units 2 | . . . 2 . . Scanalyzers 3 | . . . 3 . . Garrison Access . | . . . . . . Terminal Hacks 41 | . 8 . 9 . 24 Record 23 | . . . . . 23 Part Schematic 2 | . 1 . 1 . . Robot Analysis 4 | . 4 . . . . Prototype ID Bank 1 | . . . 1 . . Branch Access Points 1 | . . . 1 . . Locate Traps 3 | . 1 . 2 . . Recall Investigation 1 | . . . 1 . . Registered Prototypes 1 | . . . 1 . . Zone Layout 4 | . 2 . 2 . . EX-Prototype ID Bank 1 | . . . . . 1 Fabricator Hacks . | . . . . . . Repair Station Hacks 10 | . 6 . 4 . . Scan Component 5 | . 3 . 2 . . Repair 5 | . 3 . 2 . . Recycling Unit Hacks 1 | . . . 1 . . Report Inventory 1 | . . . 1 . . Scanalyzer 2 | . . . 2 . . Insert Component 1 | . . . 1 . . Analyze 1 | . . . 1 . . Garrison Access Hacks . | . . . . . . Unauthorized Hacks 12 | . 3 . 9 . . Terminals 11 | . 3 . 8 . . Assimilate 1 | . . . 1 . . Botnet 9 | . 3 . 6 . . Operators 1 | . . . 1 . . Fabricators . | . . . . . . Repair Stations . | . . . . . . Recycling Units 1 | . . . 1 . . Tunnel 1 | . . . 1 . . Scanalyzers . | . . . . . . Garrison Access . | . . . . . . Data Cores Recovered 1 | . . . 1 . . Used . | . . . . . . Hacking Detections 16 | . 5 1 10 . . Full Trace Events 6 | . 2 1 3 . . Feedback Events . | . . . . . . Feedback Blocked . | . . . . . . Robot Schematics Acquired . | . . . . . . Robots Built . | . . . . . . Matter . | . . . . . . Time . | . . . . . . Total Robot Build Rating . | . . . . . . Part Schematics Acquired 3 | . 1 . 2 . . Parts Built . | . . . . . . Matter . | . . . . . . Time . | . . . . . . Total Part Build Rating . | . . . . . . Parts Repaired 5 | . 3 . 2 . . Time 130 | . 78 . 52 . . Parts Recycled . | . . . . . . Recycled Matter . | . . . . . . Retrieved Matter . | . . . . . . Retrieved Components . | . . . . . . Parts Scanalyzed 1 | . . . 1 . . Part Schematics Acquired 1 | . . . 1 . . Parts Damaged . | . . . . . . Bothacking | -11 -10 -10 -9 -9 -9 ------------ Run | Scr Mat Min Mat Min Exi Used RIF Installer . | . . . . . . Robots Hacked . | . . . . . . Non-combat . | . . . . . . Combat . | . . . . . . Robot Hacks Applied . | . . . . . . Relay Couplers Released . | . . . . . . Robots Rewired . | . . . . . . Allies Hacked . | . . . . . . Hacks Repelled . | . . . . . . Allies | -11 -10 -10 -9 -9 -9 -------- Run | Scr Mat Min Mat Min Exi Total Allies 4 | . . 3 1 . . Largest Group 3 | . . 3 1 . . Highest-Rated Group 66 | . . 66 10 . . Highest-Rated Ally 31 | . . 31 10 . . Total Orders . | . . . . . . Ally Attacks 9 | . . 9 . . . Total Damage 126 | . . 126 . . . Kills 4 | . . 4 . . . Allies Corrupted . | . . . . . . Allies Melted . | . . . . . . Intel | -11 -10 -10 -9 -9 -9 ------- Run | Scr Mat Min Mat Min Exi Robot Analysis Total 4 | . 4 . . . . Derelict Logs Recovered 2 | . . 1 . 1 . Drone Launches . | . . . . . . Drone Recoveries . | . . . . . . Exploration | -11 -10 -10 -9 -9 -9 ------------- Run | Scr Mat Min Mat Min Exi Turns Passed 6803 | 22 1584 638 1820 1075 1664 Spaces Moved 3230 | 11 829 373 758 563 696 Core . | . . . . . . Treads 2933 | . 638 373 758 563 601 Legs 56 | 11 45 . . . . Wheels 241 | . 146 . . . 95 Hover . | . . . . . . Flight . | . . . . . . Fastest Speed 80 | 120 80 160 160 180 160 Average Speed 172 | 120 146 160 179 180 195 Slowest Speed 220 | 120 180 180 200 180 220 Overloaded Moves . | . . . . . . Propulsion Burnouts . | . . . . . . Robots Hopped . | . . . . . . Cave-ins Triggered . | . . . . . . Exploration Rate (%) 66 | 3 94 68 58 98 77 Regions Visited 5 Branch Regions 3 Pre-discovered Areas 6 | . . 2 1 2 1 Known Exits Taken 1 | . . . 1 . . Unknown Exits Taken 4 | 1 1 1 . 1 . Scrap Searched 3 | . . 1 . 2 . Spaces Dug 1 | . 1 . . . . Terrain Destroyed 34 | 2 2 . 5 . 25 Melee . | . . . . . . Projectile 4 | . 2 . . . 2 AOE 30 | 2 . . 5 . 23 Terrain Rammed . | . . . . . . Walls Destroyed . | . . . . . . Machines Disabled . | . . . . . . Actions | -11 -10 -10 -9 -9 -9 --------- Run | Scr Mat Min Mat Min Exi Total 4051 | 14 1084 398 1052 604 899 Wait 278 | . 117 9 111 . 41 Move 3225 | 10 828 372 757 562 696 Hop . | . . . . . . Pick Up 88 | . 25 2 20 8 33 Fast Attach 26 | 1 2 2 16 1 4 Attach 28 | . 4 1 6 1 16 Detach 14 | . 1 1 3 . 9 Swap 38 | 1 20 . 10 4 3 Drop 93 | . 22 2 28 13 28 Fire 259 | 2 65 9 100 14 69 Melee . | . . . . . . Ram . | . . . . . . Kick . | . . . . . . Crush 2 | . . . 1 1 . Escape Stasis . | . . . . . . Rewire . | . . . . . . Trap . | . . . . . . Miscellaneous . | . . . . . . Route ------- -11/Scrapyard -10/Materials (discovered 5 exits: *Mat x3 / *Min x2) -10/Mines (discovered 2 exits: *Mat x2) -9/Materials (discovered 3 exits: [*Mat x2] / *Min) -9/Mines (discovered 3 exits: [*Mat x2] / *Exi) -9/Exiles (discovered 1 exit: [*Min]) History --------- Turn | Location | Event 1 | -11/Scrapyard | Discovered new exit (range 2) 23 | -11/Scrapyard | Entered Materials 123 | -10/Materials | Discovered new exit (range 14) 313 | -10/Materials | Build established: Mutant 484 | -10/Materials | Discovered new exit (range 5) 780 | -10/Materials | Discovered new exit (range 14) 896 | -10/Materials | Discovered new exit (range 20) 947 | -10/Materials | Repaired Lgt. Assault Rifle 975 | -10/Materials | Repaired Lgt. Assault Rifle 1002 | -10/Materials | Repaired Lgt. Assault Rifle 1236 | -10/Materials | Discovered new exit (range 3) 1309 | -10/Materials | Core integrity fell below 50% 1607 | -10/Materials | Entered Mines 1618 | -10/Mines | Escorted by a lone wolf Derelict 1638 | -10/Mines | Learned location of Storage (-8) 1953 | -10/Mines | Discovered new exit (range 7) 1990 | -10/Mines | Found a damaged Exp. Sensor Array with a note attached 1994 | -10/Mines | Found Prototype Device 2008 | -10/Mines | Discovered new exit (range 9) 2140 | -10/Mines | Assembled infested the area 2178 | -10/Mines | Core integrity fell below 20% 2245 | -10/Mines | Entered Materials 2245 | -9/Materials | Evolved 2 slots: Utility x2 2253 | -9/Materials | Identified Exp. Sensor Array 2455 | -9/Materials | Repaired Lgt. Treads 2483 | -9/Materials | Repaired Lgt. Treads 2784 | -9/Materials | Identified exit to Mines 2895 | -9/Materials | Discovered new exit (range 3) 3296 | -9/Materials | Build established: Hauler-Mutant 3564 | -9/Materials | Discovered new exit (range 11) 4065 | -9/Materials | Entered Mines 4127 | -9/Mines | Joined a pair of Derelicts in attacking an 0b10 outpost 4341 | -9/Mines | Discovered new exit (range 5) 4690 | -9/Mines | Discovered new exit (range 7) 4918 | -9/Mines | Learned location of Zion (-6) 4976 | -9/Mines | Deemed a non-threat by the Exiles lab entrance 4976 | -9/Mines | Discovered new exit (range 5) 5044 | -9/Mines | Received a Rocket Launcher from a helpful Derelict 5140 | -9/Mines | Entered Exiles 5185 | -9/Exiles | Met 8R-AWN 5214 | -9/Exiles | Met EX-HEX 5403 | -9/Exiles | Met EX-DEC 5587 | -9/Exiles | Discovered new exit (range 11) 5766 | -9/Exiles | Met EX-BIN 5794 | -9/Exiles | Aligned with FarCom system 5796 | -9/Exiles | Given EX-Vault access code 5842 | -9/Exiles | Opened EX-Vault 5854 | -9/Exiles | Found Supersonic Drone Bay 5859 | -9/Exiles | Found Cloak of Protection 5864 | -9/Exiles | Found Chronowheel 5909 | -9/Exiles | Warned to stay clear of 0b10 Research branches 6353 | -9/Exiles | Attacked by the Exiles 6455 | -9/Exiles | Core integrity fell below 50% 6504 | -9/Exiles | Core integrity fell below 20% 6517 | -9/Exiles | Lost 4 parts (1n1u2w) 6589 | -9/Exiles | Destroyed 8R-AWN 6600 | -9/Exiles | Found Prototype Ballistic Gun 6600 | -9/Exiles | Identified 8R-AWN's Boregun 6609 | -9/Exiles | Lost 6 parts (1p2n1u2w) 6619 | -9/Exiles | Found 8R-AWN's Boregun 6624 | -9/Exiles | Found Prototype Protection 6804 | -9/Exiles | Destroyed by A6-2G7(z) with Small Laser Last Messages --------------- 06792_ HV Slug penetrates ZX-C33. 06792_ ZX-C33 suffers critical hit. 06792_ Destroyed Mak. Leg. 06792_ HV Slug penetrates A6-2G7(z). 06792_ A6-2G7(z) suffers critical hit. 06792_ Destroyed Mak. Cloaking Device. 06795_ HV Slug penetrates W1-DM0. 06795_ W1-DM0 suffers critical hit. 06795_ Destroyed Mak. System Restoration Module. 06795_ HV Slug penetrates W1-DM0. 06795_ W1-DM0 destroyed. 06798_ HV Slug penetrates Machine. 06798_ Machine disabled. 06798_ HV Slug penetrates Machine. 06798_ Machine disabled. 06801_ HV Slug penetrates ZX-C33. 06801_ ZX-C33 destroyed. 06801_ HV Slug penetrates A6-2G7(z). 06801_ A6-2G7(z) suffers critical hit. 06801_ Destroyed Mak. Power Source. Map ----- +----------------------------------------------------+ | ??????????##"" | | ???????????#"""" | | ???????????## | | ????????????#" " "" | | ????????????#""" ""## ##""" " " " | | ????????????#"" ""#### ######""" "" | | ????????????#" """"##??# #????###"""" | | ????????????#""" """#??## ####???##### | | ????????????## ""##??# " #???????? | | ?????????????#"" """##???#" #???????? | | ?????????????##""" ##????#" "#???????? | | ??????????????##"""" ##?????# ""!"#???????? | | ???????????????### #??????########???????? | | ?????????????????##### ##?????????????????????? | | ?????????????????????## #??????????????????????? | | ??????????????????????# #??????????????????????? | | ??????????????????????# #??????????????????????? | | ??????????????????????# #??????????????????????? | | ??????????????????????# #??????????????????????? | | ??????????????????????# #??????????????????????? | | ??????????????????????# #??????????????????????? | | ??????????????????????# #??????????????????????? | | ?????????????????????## #??????????????????????? | | ?????????????????????#; #??????????????????????? | | ?????????????????###### ######?????????????????? | | ???????????????? """ = ! @""""""?????????????????? | | ????????????" ! *%!% "#???????????????? | | ?????????? =%/ z ! * " ??????????????? | | ??????????? " ?????????????? | | ??????????? " ??????????????? | | ???????????? " #""?????????????? | | ????????????" """" """""#???????????????? | | ????????????##"""######;#"""######???????????????? | | ?????????????" ???????# " "????????????????????? | | ??????????????????????# " ""????????????????????? | | ??????????????????????#"" """????????????????????? | | ??????????????????????#"? ""?????????????????????? | | ?????????????????????????"???????????????????????? | | ?????????????????????????????????????????????????? | | ?????????????????????????????????????????????????? | | ?????????????????????????????????????????????????? | | ?????????????????????????????????????????????????? | | ?????????????????????????????????????????????????? | | | | | | | | | | | | | | | +----------------------------------------------------+ Best States ------------- Heat Dissipation 54 Energy Generation 14 Energy Capacity 265 Matter Stores 300 Matter Capacity 300 Sight Range 16 Robot Scan Range 30 Terrain Scan Density 10 Armor Coverage 150 Core Shielding 20 Evasion (%) 44 Armor Integrity Analysis 33 Recoil Reduction 2 Item Schematics ----------------- Hcp. Storage Unit | -10/Materials | Hacked Hcp. Battery | -9/Materials | Hacked Exp. Sensor Array | -9/Materials | Scanalyzed Robot Schematics ------------------ None Fabricated ------------ Nothing Alien Tech Used ----------------- None Achievements -------------- None Challenges ------------ None Game ------ Seed ShadeWardroneSuite Manual? 0 Play Time 00:45:39 Cumulative 107.8 hours Start 2020.12.12 @ 10:11:54 End 2020.12.12 @ 10:59:04 Sessions 1 Manual Loads 0 Difficulty Rogue Special Mode None Game No. 99 Rogue 99 Adventurer 0 Explorer 0 Win Type - Total 0 Types 0/0/0/0/0/0/0/0/0 Lore% 48 Gallery% 57 Achievement% 52 Wizard Run 0 Options --------- ASCII 0 Keyboard 1 Movement Numpad Keybinds 0 Fullscreen 1 Font 12/Terminus Map View 83x54 Tactical HUD 1 Map Filters NONE Filters NONE Steam 1 RUN: ca356142-983d-4e87-bf3c-bef5c1ea9d5c